[Event "360 One Wealth GP-4 2024"]
[Site "Mumbai"]
[Date "2024.03.16"]
[Round "6.10"]
[White "Isaiah Chris Nazareth"]
[Black "Yuti Mayur Patel"]
[Result "1-0"]
[ECO "C78"]
[WhiteElo "1698"]
[BlackElo "1621"]
[Annotator "NA RC"]
[PlyCount "141"]
[EventDate "2024.03.10"]
[EventCountry "IND"]
[SourceTitle "playchess.com"]
[Source "ChessBase"]
[SourceQuality "1"]
[TimeControl "5400+30"]

1. e4 {[%emt 0:00:02]} e5 {[%emt 0:00:08]} 2. Nf3 {[%emt 0:00:05]} Nc6 {[%emt 0:00:09]} 3. Bb5 {[%emt 0:00:06]} a6 {[%emt 0:00:02]} 4. Ba4 {[%emt 0:00:06]} Nf6 {[%emt 0:00:06]} 5. d3 {[%emt 0:00:05]} b5 {[%emt 0:00:08]} 6. Bb3 {[%emt 0:00:04]} Bc5 {[%emt 0:00:07]} 7. c3 {[%emt 0:00:07]} d6 {[%emt 0:00:08]} 8. O-O {[%emt 0:00:11]} h6 {[%emt 0:00:09]} 9. h3 {[%emt 0:00:30]} O-O {[%emt 0:00:05]} 10. Nbd2 {[%emt 0:00:06]} Bb6 {[%emt 0:00:14]} 11. Re1 {[%emt 0:00:20]} Ne7 {[%emt 0:00:15]} 12. Bc2 {[%emt 0:00:45]} Ng6 {[%emt 0:00:52]} 13. Nf1 {[%emt 0:00:07]} c5 {[%emt 0:05:56]} 14. d4 {[%emt 0:02:18]} Qc7 {[%emt 0:02:00]} 15. d5 {[%emt 0:00:53]} c4 {[%emt 0:03:13]} 16. Ng3 {[%emt 0:02:17]} Re8 {[%emt 0:04:32]} 17. Be3 {[%emt 0:12:23]} Nf4 {[%emt 0:08:22]} 18. Qd2 {[%emt 0:00:39]} Bxe3 {[%emt 0:01:52]} 19. fxe3 {[%emt 0:00:44]} Ng6 {[%emt 0:04:55]} 20. Rf1 {[%emt 0:04:31]} Qb6 {[%emt 0:10:38]} 21. Kh1 {[%emt 0:10:27]} a5 {[%emt 0:01:40]} 22. Qf2 {[%emt 0:03:12]} b4 {[%emt 0:02:38]} 23. Ba4 {[%emt 0:00:09]} Rf8 {[%emt 0:01:20]} 24. Bc6 {[%emt 0:06:13]} Rb8 {[%emt 0:01:22]} 25. Nd2 {[%emt 0:01:20]} Qc5 {[%emt 0:13:29]} 26. Qe2 {[%emt 0:12:20]} bxc3 {[%emt 0:01:58]} 27. bxc3 {[%emt 0:00:05]} Ne7 {[%emt 0:04:17]} 28. Ba4 {[%emt 0:02:38]} Ba6 {[%emt 0:02:32]} 29. a3 {[%emt 0:05:23]} Rb2 {[%emt 0:08:09]} 30. Rf3 {[%emt 0:01:51]} Nh7 {[%emt 0:04:27]} 31. Nb3 {[%emt 0:00:20]} Rxb3 {[%emt 0:08:57]} 32. Bxb3 {[%emt 0:00:07]} cxb3 {[%emt 0:00:09]} 33. Qxa6 {[%emt 0:00:09]} Qxc3 {[%emt 0:00:26]} 34. Rb1 {[%emt 0:08:10]} b2 {[%emt 0:01:34]} 35. Qb6 {[%emt 0:00:22]} Qc8 {[%emt 0:05:47]} 36. Kh2 {[%emt 0:02:39]} Ng5 {[%emt 0:00:36]} 37. Rf2 {[%emt 0:00:22]} Qc3 {[%emt 0:01:10]} 38. Rfxb2 {[%emt 0:01:38]} Qxa3 {[%emt 0:00:20]} 39. Qb3 {[%emt 0:01:15]} Qc5 {[%emt 0:01:21]} 40. Rc2 {[%emt 0:00:28]} Qa7 {[%emt 0:00:07]} 41. Qb6 {[%emt 0:00:07]} Qa8 {[%emt 0:01:32]} 42. Qxd6 {[%emt 0:02:10]} Ng6 {[%emt 0:00:05]} 43. Rcb2 {[%emt 0:00:46]} Qa7 {[%emt 0:02:02]} 44. Qb6 {[%emt 0:02:54]} Qd7 {[%emt 0:00:44]} 45. Qxa5 {[%emt 0:02:31]} Nh4 {[%emt 0:00:18]} 46. Nf5 {[%emt 0:00:05]} Nxf5 {[%emt 0:01:01]} 47. exf5 {[%emt 0:00:05]} Qxf5 {[%emt 0:00:08]} 48. Rb8 {[%emt 0:05:36]} Rxb8 {[%emt 0:00:24]} 49. Rxb8+ {[%emt 0:00:05]} Kh7 {[%emt 0:00:02]} 50. Qd2 {[%emt 0:07:01]} Ne4 {[%emt 0:01:26]} 51. Qc2 {[%emt 0:00:31]} Qg6 {[%emt 0:00:26]} 52. g4 {[%emt 0:01:31]} h5 {[%emt 0:01:02]} 53. Qc8 {[%emt 0:00:17]} Qg5 {[%emt 0:00:28]} 54. Qf5+ {[%emt 0:01:29]} Qxf5 {[%emt 0:00:10]} 55. gxf5 {[%emt 0:00:05]} Nd6 {[%emt 0:00:22]} 56. Rd8 {[%emt 0:00:29]} Nxf5 {[%emt 0:00:06]} 57. d6 {[%emt 0:00:13]} Nxd6 {[%emt 0:00:53]} 58. Rxd6 {[%emt 0:00:05]} f6 {[%emt 0:00:05]} 59. h4 {[%emt 0:01:04]} Kg6 {[%emt 0:00:22]} 60. e4 {[%emt 0:00:18]} Kh7 {[%emt 0:00:14]} 61. Kg3 {[%emt 0:00:24]} Kh6 {[%emt 0:00:08]} 62. Rd8 {[%emt 0:00:27]} Kh7 {[%emt 0:00:36]} 63. Kf3 {[%emt 0:00:34]} g6 {[%emt 0:00:26]} 64. Ke3 {[%emt 0:00:33]} g5 {[%emt 0:00:07]} 65. hxg5 {[%emt 0:00:14]} fxg5 {[%emt 0:00:02]} 66. Rd5 {[%emt 0:00:20]} Kg6 {[%emt 0:00:22]} 67. Rxe5 {[%emt 0:00:04]} h4 {[%emt 0:00:18]} 68. Kf3 {[%emt 0:00:05]} h3 {[%emt 0:00:10]} 69. Kg3 {[%emt 0:00:06]} g4 {[%emt 0:00:04]} 70. Kxg4 {[%emt 0:00:16]} Kf6 {[%emt 0:00:05]} 71. Rh5 {[%emt 0:00:07]} 1-0

[Event "360 One Wealth GP-4 2024"]
[Site "Mumbai"]
[Date "2024.03.16"]
[Round "6.11"]
[White "Ishan Roy"]
[Black "Butala Krish"]
[Result "0-1"]
[ECO "C84"]
[WhiteElo "1609"]
[BlackElo "1659"]
[Annotator "NA RC"]
[PlyCount "122"]
[EventDate "2024.03.10"]
[EventCountry "IND"]
[SourceTitle "playchess.com"]
[Source "ChessBase"]
[SourceQuality "1"]
[TimeControl "5400+30"]

1. e4 {[%emt 0:00:21]} e5 {[%emt 0:00:16]} 2. Nf3 {[%emt 0:00:05]} Nc6 {[%emt 0:00:25]} 3. Bb5 {[%emt 0:00:04]} a6 {[%emt 0:00:27]} 4. Ba4 {[%emt 0:00:02]} Nf6 {[%emt 0:00:10]} 5. d3 {[%emt 0:00:00]} b5 {[%emt 0:00:07]} 6. Bb3 {[%emt 0:00:26]} Be7 {[%emt 0:00:15]} 7. a4 {[%emt 0:00:02]} b4 {[%emt 0:00:07]} 8. a5 {[%emt 0:00:01]} d6 {[%emt 0:00:21]} 9. O-O {[%emt 0:00:05]} O-O {[%emt 0:00:04]} 10. Nbd2 {[%emt 0:00:04]} Rb8 {[%emt 0:00:05]} 11. Nc4 {[%emt 0:00:05]} h6 {[%emt 0:00:20]} 12. c3 {[%emt 0:01:15]} bxc3 {[%emt 0:02:28]} 13. bxc3 {[%emt 0:00:02]} Be6 {[%emt 0:02:33]} 14. Re1 {[%emt 0:00:22]} Nh7 {[%emt 0:01:51]} 15. d4 {[%emt 0:09:45]} exd4 {[%emt 0:01:12]} 16. cxd4 {[%emt 0:00:27]} Bf6 {[%emt 0:00:13]} 17. Qd3 {[%emt 0:23:22]} Nxd4 {[%emt 0:06:14]} 18. Nxd4 {[%emt 0:16:55]} Bxd4 {[%emt 0:02:02]} 19. Ra2 {[%emt 0:10:43]} d5 {[%emt 0:14:11]} 20. exd5 {[%emt 0:16:30]} Qxd5 {[%emt 0:00:28]} 21. Rd2 {[%emt 0:02:05]} Rfd8 {[%emt 0:04:18]} 22. Red1 {[%emt 0:08:21]} Bxf2+ {[%emt 0:02:52]} 23. Kxf2 {[%emt 0:02:51]} Qc5+ {[%emt 0:00:01]} 24. Qe3 {[%emt 0:02:02]} Qxe3+ {[%emt 0:00:17]} 25. Nxe3 {[%emt 0:01:44]} Rxd2+ {[%emt 0:00:05]} 26. Rxd2 {[%emt 0:00:07]} Bxb3 {[%emt 0:00:56]} 27. Rd7 {[%emt 0:02:34]} Rc8 {[%emt 0:01:02]} 28. Nf5 {[%emt 0:00:34]} Nf6 {[%emt 0:00:49]} 29. Rd3 {[%emt 0:01:45]} Bc2 {[%emt 0:00:04]} 30. Ne7+ {[%emt 0:02:05]} Kf8 {[%emt 0:00:12]} 31. Nxc8 {[%emt 0:00:40]} Bxd3 {[%emt 0:00:01]} 32. Na7 {[%emt 0:00:29]} Be4 {[%emt 0:01:04]} 33. Ba3+ {[%emt 0:00:30]} Ke8 {[%emt 0:00:07]} 34. Nc8 {[%emt 0:00:27]} Ng8 {[%emt 0:01:38]} 35. g3 {[%emt 0:00:30]} Kd7 {[%emt 0:00:57]} 36. Ke3 {[%emt 0:00:24]} Bc2 {[%emt 0:01:53]} 37. Na7 {[%emt 0:00:06]} g6 {[%emt 0:01:18]} 38. Bf8 {[%emt 0:00:47]} Nf6 {[%emt 0:01:39]} 39. Kd4 {[%emt 0:00:41]} h5 {[%emt 0:00:16]} 40. Kc5 {[%emt 0:00:38]} Be4 {[%emt 0:00:21]} 41. Bh6 {[%emt 0:00:30]} Ng4 {[%emt 0:00:10]} 42. Bf4 {[%emt 0:00:28]} Nxh2 {[%emt 0:00:03]} 43. Kd4 {[%emt 0:00:19]} f5 {[%emt 0:00:40]} 44. Kc5 {[%emt 0:00:27]} Nf3 {[%emt 0:00:22]} 45. Kc4 {[%emt 0:00:47]} g5 {[%emt 0:00:17]} 46. Be3 {[%emt 0:00:06]} h4 {[%emt 0:00:14]} 47. gxh4 {[%emt 0:00:09]} gxh4 {[%emt 0:00:28]} 48. Nb5 {[%emt 0:00:05]} axb5+ {[%emt 0:00:00]} 49. Kxb5 {[%emt 0:00:10]} h3 {[%emt 0:00:00]} 50. Bf4 {[%emt 0:00:24]} h2 {[%emt 0:00:10]} 51. Bxh2 {[%emt 0:00:03]} Nxh2 {[%emt 0:00:00]} 52. a6 {[%emt 0:00:12]} f4 {[%emt 0:00:02]} 53. a7 {[%emt 0:00:04]} f3 {[%emt 0:00:03]} 54. Kc5 {[%emt 0:00:12]} f2 {[%emt 0:00:05]} 55. Kd4 {[%emt 0:00:03]} Ba8 {[%emt 0:00:05]} 56. Ke3 {[%emt 0:00:10]} f1=Q {[%emt 0:00:06]} 57. Kd2 {[%emt 0:00:03]} Be4 {[%emt 0:00:18]} 58. Kc3 {[%emt 0:00:06]} Qd3+ {[%emt 0:00:11]} 59. Kb2 {[%emt 0:00:15]} Qd4+ {[%emt 0:00:34]} 60. Kc1 {[%emt 0:00:22]} Qc3+ {[%emt 0:00:10]} 61. Kd1 {[%emt 0:00:06]} Bf3# {[%emt 0:00:06]} 0-1

[Event "360 One Wealth GP-4 2024"]
[Site "Mumbai"]
[Date "2024.03.16"]
[Round "6.12"]
[White "Kolumum Raja, Aravind"]
[Black "Parv H Hakani"]
[Result "1-0"]
[ECO "D40"]
[WhiteElo "1896"]
[BlackElo "1518"]
[Annotator "NA RC"]
[PlyCount "39"]
[EventDate "2024.03.10"]
[EventCountry "IND"]
[SourceTitle "playchess.com"]
[Source "ChessBase"]
[SourceQuality "1"]
[TimeControl "5400+30"]

1. d4 d5 2. c4 {[%emt 24:14:18]} e6 {[%emt 0:00:07]} 3. Nf3 {[%emt 0:00:17]} c5 {[%emt 0:00:12]} 4. e3 {[%emt 0:02:31]} Nc6 {[%emt 0:00:33]} 5. Nc3 {[%emt 0:00:50]} Nf6 {[%emt 0:00:07]} 6. Bd3 {[%emt 0:01:42]} a6 {[%emt 0:00:17]} 7. O-O {[%emt 0:02:49]} dxc4 {[%emt 0:00:30]} 8. Bxc4 {[%emt 0:00:11]} b5 {[%emt 0:00:06]} 9. Bd3 {[%emt 0:01:46]} cxd4 {[%emt 0:02:39]} 10. exd4 {[%emt 0:01:33]} Bd6 {[%emt 0:01:53]} 11. Bg5 {[%emt 0:04:58]} Bb7 {[%emt 0:02:31]} 12. d5 {[%emt 0:05:49]} exd5 {[%emt 0:01:11]} 13. Re1+ {[%emt 0:01:33]} Be7 {[%emt 0:00:43]} 14. Bxf6 {[%emt 0:02:48]} gxf6 {[%emt 0:00:07]} 15. Bf5 {[%emt 0:03:29]} Na5 {[%emt 0:04:10]} 16. Qd4 {[%emt 0:03:37]} O-O {[%emt 0:01:50]} 17. Qg4+ {[%emt 0:01:15]} Kh8 {[%emt 0:03:45]} 18. Qh5 {[%emt 0:00:23]} h6 {[%emt 0:03:42]} 19. Qxh6+ {[%emt 0:00:09]} Kg8 {[%emt 0:00:29]} 20. Qh7# {[%emt 0:00:13]} 1-0

[Event "360 One Wealth GP-4 2024"]
[Site "Mumbai"]
[Date "2024.03.16"]
[Round "6.13"]
[White "Soni Deepak R"]
[Black "Prabhakar Aariv"]
[Result "1-0"]
[ECO "B07"]
[WhiteElo "1681"]
[BlackElo "1509"]
[Annotator "NA RC"]
[PlyCount "89"]
[EventDate "2024.03.10"]
[EventCountry "IND"]
[SourceTitle "playchess.com"]
[Source "ChessBase"]
[SourceQuality "1"]
[TimeControl "5400+30"]

1. d4 {[%emt 0:02:36]} Nf6 {[%emt 0:00:07]} 2. Bf4 {[%emt 0:00:05]} g6 {[%emt 0:00:08]} 3. Nc3 {[%emt 0:00:04]} Bg7 {[%emt 0:00:08]} 4. e4 {[%emt 0:00:05]} d6 {[%emt 0:00:08]} 5. Qd2 {[%emt 0:00:03]} Nbd7 {[%emt 0:00:23]} 6. f3 {[%emt 0:11:12]} e5 {[%emt 0:02:50]} 7. dxe5 {[%emt 0:00:33]} dxe5 {[%emt 0:00:29]} 8. Bh6 {[%emt 0:00:19]} O-O {[%emt 0:01:31]} 9. O-O-O {[%emt 0:01:16]} c6 {[%emt 0:01:32]} 10. h4 {[%emt 0:00:52]} b5 {[%emt 0:08:07]} 11. g4 {[%emt 0:03:36]} Bxh6 {[%emt 0:12:35]} 12. Qxh6 {[%emt 0:00:14]} Qe7 {[%emt 0:00:13]} 13. h5 {[%emt 0:04:54]} Nc5 {[%emt 0:02:27]} 14. hxg6 {[%emt 0:01:32]} fxg6 {[%emt 0:00:22]} 15. Nh3 {[%emt 0:07:18]} Ne6 {[%emt 0:14:26]} 16. Rd2 {[%emt 0:16:47]} a5 {[%emt 0:14:25]} 17. Rdh2 {[%emt 0:03:28]} a4 {[%emt 0:01:54]} 18. Kb1 {[%emt 0:13:44]} Bd7 {[%emt 0:24:44]} 19. Ng5 {[%emt 0:06:59]} Nxg5 {[%emt 0:01:02]} 20. Qxg5 {[%emt 0:00:02]} Rf7 {[%emt 0:00:29]} 21. Nd1 {[%emt 0:07:44]} b4 {[%emt 0:06:34]} 22. Ne3 {[%emt 0:04:28]} Be6 {[%emt 0:02:21]} 23. Nf5 {[%emt 0:01:32]} Bxf5 {[%emt 0:02:14]} 24. gxf5 {[%emt 0:00:02]} Rg7 {[%emt 0:00:46]} 25. Bc4+ {[%emt 0:01:42]} Kf8 {[%emt 0:00:20]} 26. Rh6 {[%emt 0:02:39]} Nh5 {[%emt 0:00:58]} 27. Qxe7+ {[%emt 0:05:21]} Kxe7 {[%emt 0:00:02]} 28. R1xh5 {[%emt 0:00:51]} gxf5 {[%emt 0:01:27]} 29. Rxh7 {[%emt 0:00:52]} Rxh7 {[%emt 0:00:41]} 30. Rxh7+ {[%emt 0:00:02]} Kd6 {[%emt 0:00:34]} 31. exf5 {[%emt 0:00:39]} Kc5 {[%emt 0:00:30]} 32. Be6 {[%emt 0:00:25]} Rd8 {[%emt 0:00:13]} 33. Rd7 {[%emt 0:00:23]} Rh8 {[%emt 0:00:08]} 34. Rd1 {[%emt 0:00:19]} Rh3 {[%emt 0:00:11]} 35. f6 {[%emt 0:00:39]} Rxf3 {[%emt 0:00:21]} 36. f7 {[%emt 0:00:04]} e4 {[%emt 0:00:14]} 37. Kc1 {[%emt 0:01:25]} e3 {[%emt 0:00:07]} 38. Re1 {[%emt 0:00:39]} Kd6 {[%emt 0:00:18]} 39. Rxe3 {[%emt 0:00:43]} Rf1+ {[%emt 0:00:47]} 40. Kd2 {[%emt 0:00:12]} Rf6 {[%emt 0:00:11]} 41. Bc4 {[%emt 0:00:13]} Kc5 {[%emt 0:00:11]} 42. b3 {[%emt 0:00:12]} Kd4 {[%emt 0:00:23]} 43. Re8 {[%emt 0:00:31]} Rf2+ {[%emt 0:00:07]} 44. Ke1 {[%emt 0:00:02]} Rxc2 {[%emt 0:00:28]} 45. f8=Q {[%emt 0:00:31]} 1-0

[Event "360 One Wealth GP-4 2024"]
[Site "Mumbai"]
[Date "2024.03.16"]
[Round "6.14"]
[White "Pawar Sohum"]
[Black "Yuvraj Avadhesh Pratap Singh"]
[Result "1-0"]
[ECO "B53"]
[WhiteElo "1657"]
[BlackElo "1447"]
[Annotator "NA RC"]
[PlyCount "107"]
[EventDate "2024.03.10"]
[EventCountry "IND"]
[SourceTitle "playchess.com"]
[Source "ChessBase"]
[SourceQuality "1"]
[TimeControl "5400+30"]

1. e4 c5 {[%emt 24:04:52]} 2. Nf3 {[%emt 0:00:05]} d6 {[%emt 0:00:03]} 3. d4 {[%emt 0:00:47]} cxd4 {[%emt 0:00:07]} 4. Qxd4 {[%emt 0:00:37]} Nc6 {[%emt 0:00:21]} 5. Bb5 {[%emt 0:00:02]} Bd7 {[%emt 0:00:53]} 6. Bxc6 {[%emt 0:00:02]} Bxc6 {[%emt 0:00:11]} 7. Nc3 {[%emt 0:00:05]} e5 {[%emt 0:02:25]} 8. Qd3 {[%emt 0:02:04]} Nf6 {[%emt 0:00:40]} 9. Bg5 {[%emt 0:00:08]} Be7 {[%emt 0:00:06]} 10. O-O-O {[%emt 0:01:31]} Qc7 {[%emt 0:01:11]} 11. Bxf6 {[%emt 0:00:16]} gxf6 {[%emt 0:00:13]} 12. Nh4 {[%emt 0:00:43]} O-O-O {[%emt 0:00:38]} 13. Nf5 {[%emt 0:00:38]} Rd7 {[%emt 0:00:21]} 14. Nxe7+ {[%emt 0:00:55]} Rxe7 {[%emt 0:00:22]} 15. Qxd6 {[%emt 0:00:03]} Qxd6 {[%emt 0:00:26]} 16. Rxd6 {[%emt 0:00:02]} Re6 {[%emt 0:00:08]} 17. Rhd1 {[%emt 0:00:37]} Kc7 {[%emt 0:00:18]} 18. R6d3 {[%emt 0:03:19]} Rg8 {[%emt 0:00:33]} 19. g3 {[%emt 0:01:28]} Rg5 {[%emt 0:00:56]} 20. Nd5+ {[%emt 0:01:20]} Kc8 {[%emt 0:01:19]} 21. Rf3 {[%emt 0:03:06]} b6 {[%emt 0:00:56]} 22. Nxf6 {[%emt 0:01:51]} Rg6 {[%emt 0:00:22]} 23. Nd5 {[%emt 0:00:21]} Be8 {[%emt 0:01:51]} 24. Rc3+ {[%emt 0:00:14]} Kb7 {[%emt 0:00:45]} 25. Nc7 {[%emt 0:00:41]} Re7 {[%emt 0:00:03]} 26. Nxe8 Rxe8 {[%emt 0:00:12]} 27. Rd7+ Ka6 {[%emt 0:00:20]} 28. Ra3+ Kb5 {[%emt 0:01:15]} 29. Raxa7 Rg4 {[%emt 0:01:05]} 30. f3 Rg6 {[%emt 0:00:32]} 31. Rxf7 Rh6 {[%emt 0:00:47]} 32. Rxh7 Rf6 {[%emt 0:00:13]} 33. Raf7 Rd6 {[%emt 0:01:02]} 34. Rd7 Rf6 {[%emt 0:00:42]} 35. Rhf7 Rh6 {[%emt 0:00:20]} 36. h4 {[%emt 0:00:16]} Rg8 {[%emt 0:00:30]} 37. g4 {[%emt 0:01:14]} Rxh4 {[%emt 0:00:46]} 38. Rh7 {[%emt 0:00:03]} Rh8 {[%emt 0:00:09]} 39. Rxh8 {[%emt 0:00:08]} Rxh8 {[%emt 0:00:03]} 40. Rd5+ {[%emt 0:00:16]} Kc4 {[%emt 0:00:06]} 41. Rxe5 {[%emt 0:00:39]} b5 {[%emt 0:00:51]} 42. Rh5 {[%emt 0:00:29]} Rf8 {[%emt 0:00:39]} 43. Rh3 {[%emt 0:00:23]} b4 {[%emt 0:00:13]} 44. g5 {[%emt 0:00:19]} Ra8 {[%emt 0:00:22]} 45. g6 {[%emt 0:00:59]} b3 {[%emt 0:00:06]} 46. axb3+ {[%emt 0:00:10]} Kd4 {[%emt 0:00:26]} 47. Kd2 {[%emt 0:00:25]} Rd8 {[%emt 0:00:09]} 48. g7 {[%emt 0:00:18]} Ke5+ {[%emt 0:00:34]} 49. Ke3 {[%emt 0:00:09]} Rg8 {[%emt 0:00:05]} 50. Rg3 {[%emt 0:00:10]} Kf6 {[%emt 0:00:41]} 51. f4 {[%emt 0:00:12]} Kf7 {[%emt 0:00:57]} 52. e5 {[%emt 0:00:11]} Ke7 {[%emt 0:00:13]} 53. f5 {[%emt 0:00:07]} Kf7 {[%emt 0:00:23]} 54. f6 {[%emt 0:00:04]} 1-0

[Event "360 One Wealth GP-4 2024"]
[Site "Mumbai"]
[Date "2024.03.16"]
[Round "6.15"]
[White "Aabha Milind Gavkar"]
[Black "Nirvaan Nirav Shah"]
[Result "0-1"]
[ECO "B90"]
[WhiteElo "1513"]
[BlackElo "1625"]
[Annotator "NA RC"]
[PlyCount "76"]
[EventDate "2024.03.10"]
[EventCountry "IND"]
[SourceTitle "playchess.com"]
[Source "ChessBase"]
[SourceQuality "1"]
[TimeControl "5400+30"]

1. e4 c5 {[%emt 0:01:46]} 2. Nf3 d6 {[%emt 0:00:10]} 3. d4 cxd4 {[%emt 0:00:10]} 4. Nxd4 Nf6 {[%emt 0:00:11]} 5. Nc3 a6 {[%emt 0:00:08]} 6. f3 e5 {[%emt 0:02:40]} 7. Nb3 b5 {[%emt 0:00:42]} 8. a3 Bb7 {[%emt 0:05:39]} 9. Bg5 Be7 {[%emt 0:05:57]} 10. Qd3 Nbd7 {[%emt 0:06:38]} 11. Rd1 h6 {[%emt 0:27:23]} 12. Be3 Qc7 {[%emt 0:05:02]} 13. Be2 Rd8 {[%emt 0:06:30]} 14. Nd5 Nxd5 {[%emt 0:07:52]} 15. exd5 {[%emt 0:00:02]} Rc8 {[%emt 0:00:30]} 16. Rd2 {[%emt 0:04:14]} Nf6 {[%emt 0:01:11]} 17. O-O {[%emt 0:04:18]} Nxd5 {[%emt 0:00:13]} 18. g3 {[%emt 0:05:07]} Nxe3 {[%emt 0:01:34]} 19. Qxe3 {[%emt 0:00:02]} O-O {[%emt 0:00:15]} 20. h4 d5 {[%emt 0:11:48]} 21. c3 Bd6 {[%emt 0:03:08]} 22. Kg2 f5 {[%emt 0:03:40]} 23. Qf2 f4 24. g4 Qd7 25. Rfd1 Qe6 26. Qb6 Ba8 27. Qxa6 d4 28. Kh2 Rc6 29. Qa7 Qxb3 30. cxd4 e4 31. Kg2 exf3+ 32. Bxf3 Rc7 33. Qxa8 Rxa8 34. Bxa8 Qg3+ 35. Kh1 f3 36. Bd5+ Kh8 {[%emt 0:56:30]} 37. Be6 f2 {[%emt 0:01:06]} 38. g5 Qh2# {[%emt 0:02:44]} 0-1

[Event "360 One Wealth GP-4 2024"]
[Site "Mumbai"]
[Date "2024.03.17"]
[Round "7.1"]
[White "Guru Prakash"]
[Black "Kulkarni, Vikramaditya"]
[Result "0-1"]
[ECO "B13"]
[WhiteElo "1794"]
[BlackElo "2192"]
[Annotator "RC"]
[PlyCount "84"]
[EventDate "2024.03.10"]
[EventCountry "IND"]
[SourceTitle "playchess.com"]
[Source "ChessBase"]
[SourceQuality "1"]
[TimeControl "5400+30"]

1. e4 {[%emt 0:00:07]} g6 {[%emt 0:00:42]} 2. d4 {[%emt 0:00:54]} Bg7 {[%emt 0:00:31]} 3. Nf3 {[%emt 0:00:30]} d6 {[%emt 0:00:21]} 4. Bc4 {[%emt 0:03:40]} c6 {[%emt 0:03:38]} 5. O-O {[%emt 0:02:50]} d5 {[%emt 0:00:29]} 6. exd5 {[%emt 0:02:36]} cxd5 {[%emt 0:00:04]} 7. Bd3 {[%emt 0:02:20]} Bg4 {[%emt 0:00:43]} 8. c3 {[%emt 0:03:00]} Bxf3 {[%emt 0:03:08]} 9. Qxf3 {[%emt 0:00:10]} Nf6 {[%emt 0:00:11]} 10. Nd2 {[%emt 0:07:07]} O-O {[%emt 0:01:25]} 11. Qe2 {[%emt 0:00:57]} Qd6 {[%emt 0:06:08]} 12. Nf3 {[%emt 0:03:52]} Nfd7 {[%emt 0:02:21]} 13. Re1 {[%emt 0:03:44]} Nc6 {[%emt 0:00:45]} 14. b4 {[%emt 0:06:47]} a6 {[%emt 0:50:53]} 15. a4 {[%emt 0:12:24]} Rfe8 {[%emt 0:00:26]} 16. b5 {[%emt 0:03:23]} axb5 {[%emt 0:00:26]} 17. Bxb5 {[%emt 0:00:47]} Qc7 {[%emt 0:05:12]} 18. Qa2 {[%emt 0:06:25]} Nb6 {[%emt 0:02:37]} 19. Be3 {[%emt 0:05:08]} Red8 {[%emt 0:01:27]} 20. Qd2 {[%emt 0:14:08]} Nc4 {[%emt 0:09:17]} 21. Bxc4 {[%emt 0:02:23]} dxc4 {[%emt 0:00:48]} 22. Bh6 {[%emt 0:01:08]} Na5 {[%emt 0:02:14]} 23. Bxg7 {[%emt 0:00:17]} Kxg7 {[%emt 0:00:21]} 24. Qg5 {[%emt 0:00:23]} e6 {[%emt 0:00:30]} 25. Nd2 {[%emt 0:00:54]} Rd5 {[%emt 0:03:06]} 26. Qg3 {[%emt 0:03:52]} Qd7 {[%emt 0:01:20]} 27. Reb1 {[%emt 0:01:09]} e5 {[%emt 0:00:32]} 28. Nf3 {[%emt 0:01:59]} Nb3 {[%emt 0:00:31]} 29. Nxe5 {[%emt 0:01:51]} Qf5 {[%emt 0:00:02]} 30. Nxc4 {[%emt 0:01:55]} Nxa1 {[%emt 0:00:05]} 31. Rf1 {[%emt 0:02:21]} Rxa4 {[%emt 0:01:35]} 32. Nb6 {[%emt 0:00:33]} Ra3 {[%emt 0:00:46]} 33. Nxd5 {[%emt 0:01:19]} Qxd5 {[%emt 0:00:03]} 34. Qc7 {[%emt 0:00:34]} Nb3 {[%emt 0:01:04]} 35. h3 {[%emt 0:01:19]} Nd2 {[%emt 0:00:59]} 36. Re1 {[%emt 0:00:21]} Nc4 {[%emt 0:00:17]} 37. Qg3 {[%emt 0:02:07]} b5 {[%emt 0:00:01]} 38. Re8 {[%emt 0:00:55]} b4 {[%emt 0:00:52]} 39. Qb8 {[%emt 0:00:13]} Ra1+ {[%emt 0:00:02]} 40. Kh2 {[%emt 0:00:09]} Qd6+ {[%emt 0:00:02]} 41. Qxd6 {[%emt 0:00:37]} Nxd6 {[%emt 0:00:02]} 42. Rd8 {[%emt 0:00:13]} bxc3 {[%emt 0:00:03]} 0-1